Cogmind - Beta 12 @@@ ROGUE MODE // 2023.11.10 @ 01:53:19 Player: kaj Result: Core destroyed Performance ------------- Evolutions (2) 1000 Regions Visited (6) 1200 Robots Destroyed (35) 175 Value Destroyed (1010) 1010 Prototype IDs (23) 460 Alien Tech Used (0) 0 Bonus (1007) 1007 TOTAL SCORE: 4852 Bonus ------- Follower Combat Kills 7 Entered Garrisons 200 Used RIF Installer 500 Aligned with FarCom 300 Cogmind --------- Core Integrity 0/550 Matter 28/300 Energy 100/100 System Corruption 4% Temperature Cool (0) Movement Rolling (175) Ox5 Location -8/Garrison Parts ------- > --- POWER (1) -------- (None) > --- PROPULSION (4) --- Aluminum Leg Carbon-fiber Leg Compact Wheel > --- UTILITY (4) ------ Huge Storage Unit Signal Interpreter Terrain Scan Processor > --- WEAPON (2) ------- Assault Rifle > --- INVENTORY (25) --- High-capacity Matter Pod (200) High-capacity Matter Pod (200) Compact Matter Pod (150) AWS/Autocannon Remote Datajack Peak State ------------ > --- POWER ------------ Improved Ion Engine > --- PROPULSION ------- Light Treads Aluminum Leg Wheel Compact Wheel > --- UTILITY ---------- Improved Heat Sink Improved Heat Sink Huge Storage Unit Utility Shielding > --- WEAPON ----------- Light Cannon Battle Cannon > --- INVENTORY -------- Light Treads Light Treads Light Treads Advanced Treads Aluminum Leg Aluminum Leg Carbon-fiber Leg Compact Wheel High-capacity Matter Pod High-capacity Matter Pod Compact Matter Pod Signal Interpreter Terrain Scanner Terrain Scan Processor Assault Rifle Heavy Assault Rifle Light Cannon AWS/Autocannon Grenade Launcher Rocket Launcher Remote Datajack [Rating: 23] Favorites ----------- Power Ion Engine Engine Ion Engine Power Core Light Nuclear Core Propulsion Light Treads Treads Light Treads Leg Aluminum Leg Wheel Compact Wheel Utility Huge Storage Unit Device Long-range Tractor Beam Storage Huge Storage Unit Processor Signal Interpreter Protection Light Armor Plating Weapon Assault Rifle Energy Gun Small Laser Ballistic Gun Assault Rifle Ballistic Cannon Light Cannon Launcher Grenade Launcher Build | -11 -10 -10 -10 -9 -8 -8 ------- Run | Jun Mat Min Exi Min Mat Gar Slots Evolved 4 | . . . . . 4 . Power . | . . . . . . . Propulsion 2 | . . . . . 2 . Utility 2 | . . . . . 2 . Weapon . | . . . . . . . Parts Attached 59 | 1 11 . . 2 8 37 Power 7 | . 1 . . 1 . 5 Engine 5 | . 1 . . 1 . 3 Core 2 | . . . . . . 2 Reactor . | . . . . . . . Propulsion 26 | . 6 . . . 3 17 Treads 10 | . 2 . . . 2 6 Leg 9 | . . . . . 1 8 Wheel 7 | . 4 . . . . 3 Hover . | . . . . . . . Flight . | . . . . . . . Utility 13 | . 2 . . . 4 7 Device 7 | . . . . . 4 3 Storage 1 | . 1 . . . . . Processor 3 | . 1 . . . . 2 Hackware . | . . . . . . . Protection 2 | . . . . . . 2 Artifact . | . . . . . . . Weapon 13 | 1 2 . . 1 1 8 Energy Gun . | . . . . . . . Energy Cannon . | . . . . . . . Ballistic Gun 5 | 1 2 . . . . 2 Ballistic Cannon 6 | . . . . 1 1 4 Launcher 2 | . . . . . . 2 Special Weapon . | . . . . . . . Impact Weapon . | . . . . . . . Slashing Weapon . | . . . . . . . Piercing Weapon . | . . . . . . . Special Melee Weapon . | . . . . . . . Unidentified Prototypes . | . . . . . . . Parts Lost 37 | . . . . 2 2 33 Power 7 | . . . . 1 1 5 Propulsion 14 | . . . . . 1 13 Utility 7 | . . . . . . 7 Weapon 9 | . . . . 1 . 8 Highest Loss Streak 12 | . . . . 2 1 12 To Critical Strikes . | . . . . . . . Average Slot Usage (%) 89 | . 83 100 100 99 92 82 Engine 9 | . 11 14 14 13 9 3 Treads 9 | . 2 . . . 18 18 Leg 5 | . 10 . . . 1 8 Wheel 16 | . 12 28 28 28 15 7 Device 4 | . . . . . 17 8 Storage 11 | . 14 14 14 14 9 9 Processor 7 | . 9 14 14 14 4 2 Protection 2 | . . . . . . 5 Ballistic Gun 14 | . 22 28 28 24 3 3 Ballistic Cannon 6 | . . . . 2 15 13 Naked Turns . | . . . . . . . Heaviest Build 98 | 14 89 89 89 89 92 98 Greatest Support 82 | 20 40 26 26 26 26 82 Greatest Overweight (x) 9 | . 8 3 3 3 5 9 Average Overweight (x) 3 | . 2 3 3 3 3 4 Largest Inventory Capacity 25 | 8 25 25 25 25 25 25 Average Capacity 24 | 8 18 25 25 25 25 25 Most Carried 25 | 6 13 12 15 21 22 25 Average Carried 16 | 6 8 10 13 18 19 18 Final Capacity 25 | 8 25 25 25 25 25 25 Final Carried 22 | 6 10 12 15 21 22 7 Class Distribution -------------------- 72% | Mutant 18% | Scavenger-Mutant 5% | Scavenger-Skirmisher Dominant Class ---------------- Mutant | -10/Materials Mutant | -10/Mines Mutant | -10/Exiles Mutant | -9/Mines Mutant | -8/Materials Scavenger-Mutant | -8/Garrison Resources | -11 -10 -10 -10 -9 -8 -8 ----------- Run | Jun Mat Min Exi Min Mat Gar Matter Collected 1857 | 200 206 624 . 36 230 561 Remotely 324 | . . . . . 164 160 Salvage Created 846 | . 237 37 . 2 170 400 Parts 69 | . 17 5 . 1 14 32 Haulers Intercepted . | . . . . . . . Recyclers Shooed 1 | . 1 . . . . . Parts Field Recycled . | . . . . . . . Retrieved Matter . | . . . . . . . Parts Self-Destructed . | . . . . . . . Prevented . | . . . . . . . Kills | -11 -10 -10 -10 -9 -8 -8 ------- Run | Jun Mat Min Exi Min Mat Gar Combat Hostiles Destroyed 30 | . 6 3 . 1 3 17 Guns 11 | . 6 3 . . . 2 Cannons 17 | . . . . 1 3 13 AOE 2 | . . . . . . 2 Classes Destroyed 11 | . 5 . . . 3 3 Worker 1 | . 1 . . . . . Builder 1 | . . . . . 1 . Tunneler 1 | . 1 . . . . . Recycler 1 | . . . . . 1 . Watcher 1 | . 1 . . . . . Swarmer 12 | . 3 3 . 1 . 5 Grunt 11 | . 3 . . . 2 6 Duelist 1 | . . . . . . 1 Sentry 3 | . . . . . 1 2 Hunter 1 | . . . . . . 1 Programmer 2 | . . . . . . 2 Best Kill Streak 5 | . 4 3 . 1 3 5 Combat Bots Only 5 | . 4 3 . 1 1 5 Max Kills in Single Turn 1 | . 1 1 . 1 1 1 Gunslinging . | . . . . . . . Exploded 1 | . . . . . . 1 Melee . | . . . . . . . Uniques/NPCs Destroyed . | . . . . . . . Combat | -11 -10 -10 -10 -9 -8 -8 -------- Run | Jun Mat Min Exi Min Mat Gar Damage Taken 3945 | . 230 59 . 153 268 3235 Core 671 | . 57 15 . 30 102 467 Absorbed by Shields . | . . . . . . . Redirected to Shielding 31 | . . . . . . 31 Core Remaining (%) 79 | 100 . . . 59 . . Volleys Fired 135 | . 31 4 . 5 19 76 Largest 2 | . 2 2 . 2 2 2 Hottest 74 | . 40 40 . 55 70 74 Shots Fired 261 | . 62 8 . 10 38 143 Gun 102 | . 62 8 . 6 . 26 Cannon 155 | . . . . 4 38 113 Launcher 4 | . . . . . . 4 Special . | . . . . . . . Kinetic 257 | . 62 8 . 10 38 139 Thermal . | . . . . . . . Explosive 4 | . . . . . . 4 Electromagnetic . | . . . . . . . Robot Hit Streak 19 | . 5 3 . 2 9 19 Robot Miss Streak 4 | . 2 1 . 3 4 4 Penetration Max . | . . . . . . . Secondary Targets 1 | . 1 . . . . . Max Gunslinging Chain 1 | . 1 . . . . . Shots Hit Robots 165 | . 40 4 . 5 26 90 Core Hits 66 | . 14 3 . 1 9 39 Critical Kills 1 | . 1 . . . . . Critical Parts Destroyed 1 | . 1 . . . . . Critical Strikes 6 | . 2 . . . 1 3 Destroy 2 | . 2 . . . . . Blast 4 | . . . . . 1 3 Melee Attacks . | . . . . . . . Impact . | . . . . . . . Slashing . | . . . . . . . Piercing . | . . . . . . . Sneak Attacks . | . . . . . . . Combat Hostiles . | . . . . . . . Follow-up Attacks . | . . . . . . . Damage Inflicted 2974 | . 511 60 . 75 492 1836 Guns 859 | . 511 60 . 40 . 248 Cannons 1851 | . . . . 35 492 1324 Explosions 243 | . . . . . . 243 Melee . | . . . . . . . Ramming 21 | . . . . . . 21 Kinetic 2710 | . 511 60 . 75 492 1572 Thermal . | . . . . . . . Explosive 243 | . . . . . . 243 Electromagnetic . | . . . . . . . Impact . | . . . . . . . Slashing . | . . . . . . . Piercing . | . . . . . . . Highest Corruption 4 | . . . . . . 4 Average Corruption 3 | . . . . . . 3 Corruption Purged . | . . . . . . . Corruption Blocked . | . . . . . . . Effects 18 | . . . . . . 18 Message Errors 2 | . . . . . . 2 Matter Fused 5 | . . . . . . 5 Heat Flow Errors 1 | . . . . . . 1 Energy Discharges 4 | . . . . . . 4 Data Loss (minor) 3 | . . . . . . 3 Data Loss (major) 1 | . . . . . . 1 Misfires 1 | . . . . . . 1 Alerts 1 | . . . . . . 1 Overload Shots . | . . . . . . . Overflow Damage 15 | . . . . . 6 9 Projectiles 6 | . . . . . 6 . Explosions 9 | . . . . . . 9 Melee . | . . . . . . . Knockbacks 16 | . . . . . 8 8 Impact . | . . . . . . . Kinetic 16 | . . . . . 8 8 Secondary . | . . . . . . . Self-Inflicted Damage 53 | . . . . . . 53 Shots 1 | . . . . . . 1 Rammed . | . . . . . . . Targets Rammed . | . . . . . . . Kicked . | . . . . . . . Crushed . | . . . . . . . Highest Temperature 212 | . 5 . . . 12 212 Average Temperature 19 | . 5 . . . 6 24 Received Heat Transfer 1089 | . 102 . . . 117 870 Siege Activations . | . . . . . . . Robots Corrupted . | . . . . . . . Combat Hostiles . | . . . . . . . Parts Fried . | . . . . . . . Impact Corruptions . | . . . . . . . Robots Melted . | . . . . . . . Combat Hostiles . | . . . . . . . Parts Melted . | . . . . . . . Heat Transferred . | . . . . . . . Parts Sabotaged . | . . . . . . . Parts Stolen . | . . . . . . . Parts Stripped . | . . . . . . . Power Chain Reactions . | . . . . . . . Missiles Intercepted . | . . . . . . . Alert | -11 -10 -10 -10 -9 -8 -8 ------- Run | Jun Mat Min Exi Min Mat Gar Peak Influence 387 | . 176 80 . 55 151 387 Initial 91 | . . 10 . . 21 91 Average 149 | . 114 71 . 10 61 266 Maximum Alert Level 1 | . . . . . . 1 Low Security (%) 66 | 100 100 100 . 100 100 24 Level 1 33 | . . . . . . 75 Level 2 . | . . . . . . . Level 3 . | . . . . . . . Level 4 . | . . . . . . . Level 5 . | . . . . . . . High Security . | . . . . . . . Max Security . | . . . . . . . Squads Dispatched 2 | . 1 . . . 1 . Investigation . | . . . . . . . Extermination . | . . . . . . . Reinforcement 1 | . 1 . . . . . Assault . | . . . . . . . Garrison 1 | . . . . . 1 . Intercept . | . . . . . . . Searches Triggered . | . . . . . . . Construction Impeded . | . . . . . . . Haulers Reinforced . | . . . . . . . Active Scanning Responses . | . . . . . . . Cargo Convoy Interrupts . | . . . . . . . Stealth | -11 -10 -10 -10 -9 -8 -8 --------- Run | Jun Mat Min Exi Min Mat Gar Distress Signals 3 | . 2 . . . 1 . Communications Jammed . | . . . . . . . Distress Signals . | . . . . . . . Times Spotted 52 | . 12 3 . 3 10 24 Peak Tracking Total 7 | . 6 3 . 3 4 7 Tactical Retreats 6 | . 1 . . 1 . 4 Traps | -11 -10 -10 -10 -9 -8 -8 ------- Run | Jun Mat Min Exi Min Mat Gar Traps Triggered 6 | . 2 . . . . 4 Indirectly . | . . . . . . . Trap Hack Attempts . | . . . . . . . Triggered . | . . . . . . . Disarmed . | . . . . . . . Reprogrammed . | . . . . . . . Reused . | . . . . . . . Traps Extracted . | . . . . . . . Installed . | . . . . . . . Triggered . | . . . . . . . Machines | -11 -10 -10 -10 -9 -8 -8 ---------- Run | Jun Mat Min Exi Min Mat Gar Machines Disabled 3 | . 1 . . . 2 . Max in Single Turn 1 | . 1 . . . 1 . Machines Repaired . | . . . . . . . Machines Sabotaged . | . . . . . . . Overloaded Fab Kills . | . . . . . . . Hacking | -11 -10 -10 -10 -9 -8 -8 --------- Run | Jun Mat Min Exi Min Mat Gar Machines Accessed 6 | . 1 . 1 . 2 2 Terminals 4 | . 1 . . . 1 2 Fabricators . | . . . . . . . Repair Stations . | . . . . . . . Recycling Units . | . . . . . . . Scanalyzers . | . . . . . . . Garrison Access 1 | . . . . . 1 . Total Hacks 8 | . 1 . 1 . 3 3 Successful 5 | . . . 1 . 2 2 Failed 3 | . 1 . . . 1 1 Catastrophic 2 | . 1 . . . . 1 Database Lockouts . | . . . . . . . Manual 3 | . 1 . 1 . 1 . Terminals 6 | . 1 . . . 2 3 Fabricators . | . . . . . . . Repair Stations . | . . . . . . . Recycling Units . | . . . . . . . Scanalyzers . | . . . . . . . Garrison Access 1 | . . . . . 1 . Terminal Hacks 4 | . . . 1 . 1 2 Open Door 1 | . . . . . . 1 Emergency Access Points 1 | . . . . . . 1 Zone Layout 1 | . . . . . 1 . EX-Prototype ID Bank 1 | . . . 1 . . . Fabricator Hacks . | . . . . . . . Repair Station Hacks . | . . . . . . . Recycling Unit Hacks . | . . . . . . . Scanalyzer . | . . . . . . . Garrison Access Hacks 1 | . . . . . 1 . Unlock Access 1 | . . . . . 1 . Unauthorized Hacks . | . . . . . . . Terminals . | . . . . . . . Fabricators . | . . . . . . . Repair Stations . | . . . . . . . Recycling Units . | . . . . . . . Scanalyzers . | . . . . . . . Garrison Access . | . . . . . . . Data Cores Recovered . | . . . . . . . Used . | . . . . . . . Hacking Detections 3 | . 1 . . . 1 1 Full Trace Events 1 | . . . . . . 1 Feedback Events . | . . . . . . . Feedback Blocked . | . . . . . . . Robot Schematics Acquired . | . . . . . . . Robots Built . | . . . . . . . Authchips . | . . . . . . . Time . | . . . . . . . Total Robot Build Rating . | . . . . . . . Part Schematics Acquired . | . . . . . . . Parts Built . | . . . . . . . Authchips . | . . . . . . . Time . | . . . . . . . Total Part Build Rating . | . . . . . . . Parts Repaired . | . . . . . . . Time . | . . . . . . . Parts Recycled . | . . . . . . . Recycled Matter . | . . . . . . . Retrieved Matter . | . . . . . . . Retrieved Components . | . . . . . . . Parts Scanalyzed . | . . . . . . . Part Schematics Acquired . | . . . . . . . Parts Damaged . | . . . . . . . Bothacking | -11 -10 -10 -10 -9 -8 -8 ------------ Run | Jun Mat Min Exi Min Mat Gar Used RIF Installer 1 | . . . . . . 1 Robots Hacked . | . . . . . . . Non-combat . | . . . . . . . Combat . | . . . . . . . Robot Hacks Applied . | . . . . . . . Relay Couplers Released . | . . . . . . . Fabnet Peak Effective % . | . . . . . . . Robots Rewired . | . . . . . . . Allies Hacked . | . . . . . . . Hacks Repelled . | . . . . . . . Allies | -11 -10 -10 -10 -9 -8 -8 -------- Run | Jun Mat Min Exi Min Mat Gar Total Allies 1 | . . . . . . 1 Largest Group 1 | . . . . . . 1 Highest-Rated Group 20 | . . . . . . 20 Highest-Rated Ally 20 | . . . . . . 20 Total Orders . | . . . . . . . Ally Attacks 5 | . . . . . . 5 Total Damage 70 | . . . . . . 70 Kills 1 | . . . . . . 1 Allies Corrupted . | . . . . . . . Allies Melted . | . . . . . . . Intel | -11 -10 -10 -10 -9 -8 -8 ------- Run | Jun Mat Min Exi Min Mat Gar Robot Analysis Total . | . . . . . . . Derelict Logs Recovered 1 | . . 1 . . . . Drone Launches . | . . . . . . . Drone Recoveries . | . . . . . . . Exploration | -11 -10 -10 -10 -9 -8 -8 ------------- Run | Jun Mat Min Exi Min Mat Gar Turns Passed 3151 | 6 487 186 300 675 244 1253 Spaces Moved 1563 | 4 239 127 221 380 105 487 Core . | . . . . . . . Treads 127 | . 8 . . . . 119 Legs 87 | 4 76 . . . . 7 Wheels 1349 | . 155 127 221 380 105 361 Hover . | . . . . . . . Flight . | . . . . . . . Fastest Speed 120 | 120 120 135 135 135 135 135 Average Speed 154 | 120 149 135 135 135 142 188 Slowest Speed 680 | 120 680 135 135 135 175 330 Overloaded Moves . | . . . . . . . Propulsion Burnouts . | . . . . . . . Robots Hopped . | . . . . . . . Cave-ins Triggered . | . . . . . . . Exploration Rate (%) 35 | 2 36 21 61 60 11 54 Regions Visited 6 Branch Regions 3 Pre-discovered Areas . | . . . . . . . Known Exits Taken 5 | . 1 1 1 1 1 . Unknown Exits Taken 1 | 1 . . . . . . Scrap Searched 3 | . . . . 3 . . Spaces Dug . | . . . . . . . Terrain Destroyed 6 | . . . . . . 6 Melee . | . . . . . . . Projectile . | . . . . . . . AOE 6 | . . . . . . 6 Terrain Rammed 1 | . . . . . . 1 Walls Destroyed . | . . . . . . . Machines Disabled . | . . . . . . . Actions | -11 -10 -10 -10 -9 -8 -8 --------- Run | Jun Mat Min Exi Min Mat Gar Total 2038 | 4 307 134 223 531 162 677 Wait 217 | . 10 . . 138 18 51 Move 1557 | 3 238 126 220 379 105 486 Hop . | . . . . . . . Pick Up 48 | . 12 3 2 7 9 15 Fast Attach 5 | . 1 . . 1 . 3 Attach 39 | . 4 . . 1 6 28 Detach . | . . . . . . . Swap 15 | 1 6 . . . 2 6 Drop 14 | . 5 1 1 . 3 4 Fire 135 | . 31 4 . 5 19 76 Melee . | . . . . . . . Ram . | . . . . . . . Kick . | . . . . . . . Crush . | . . . . . . . Escape Stasis 8 | . . . . . . 8 Rewire . | . . . . . . . Trap . | . . . . . . . Miscellaneous . | . . . . . . . Route ------- -11/Junkyard -10/Materials (discovered 2 exits: *Mat / *Min) -10/Mines (discovered 2 exits: *Mat / *Exi) -10/Exiles (discovered 2 exits: *Min x2) -9/Mines -8/Materials (discovered 2 exits: Fac / Gar) -8/Garrison (discovered 1 exit: *Fac) History --------- Turn | Location | Event 1 | -11/Junkyard | Discovered new exit (range 2) 7 | -11/Junkyard | Entered Materials 245 | -10/Materials | Discovered new exit (range 12) 308 | -10/Materials | Build established: Mutant 349 | -10/Materials | Discovered new exit (range 4) 458 | -10/Materials | Identified exit to Mines 494 | -10/Materials | Entered Mines 509 | -10/Mines | Discovered new exit (range 6) 538 | -10/Mines | Identified exit to Materials 575 | -10/Mines | Learned 4 Materials zone layouts 597 | -10/Mines | Deemed a non-threat by the Exiles lab entrance 598 | -10/Mines | Discovered new exit (range 5) 679 | -10/Mines | Identified exit to Exiles 680 | -10/Mines | Entered Exiles 703 | -10/Exiles | Discovered new exit (range 15) 720 | -10/Exiles | Met 8R-AWN 739 | -10/Exiles | Met EX-HEX 779 | -10/Exiles | Met EX-BIN 795 | -10/Exiles | Aligned with FarCom system 797 | -10/Exiles | Given EX-Vault access code 828 | -10/Exiles | Opened EX-Vault 838 | -10/Exiles | Found Lightpack 2.0 841 | -10/Exiles | Found AWS/Autocannon 871 | -10/Exiles | Warned to stay clear of 0b10 Research branches 912 | -10/Exiles | Met EX-DEC 965 | -10/Exiles | Discovered new exit (range 14) 979 | -10/Exiles | Identified exit to Mines 980 | -10/Exiles | Left Exiles lab with AWS/Autocannon 980 | -10/Exiles | Entered Mines 1569 | -9/Mines | A weapon hastily lodged in a ceiling crevice suddenly fell to the ground 1632 | -9/Mines | Discovered new exit (range 10) 1653 | -9/Mines | Identified exit to Materials 1655 | -9/Mines | Entered Materials 1655 | -8/Materials | Evolved 4 slots: Propulsion x2, Utility x2 1656 | -8/Materials | Identified exit to Factory 1846 | -8/Materials | Garrison activated, responded to threat 1899 | -8/Materials | Identified exit to Garrison 1899 | -8/Materials | Entered Garrison 2018 | -8/Garrison | Triggered checkpoint 2111 | -8/Garrison | Rescued a captive Derelict 2192 | -8/Garrison | Triggered checkpoint 2280 | -8/Garrison | Discovered exit to Factory (range 15) 2336 | -8/Garrison | Attempted to access garrison exit controls, blocked by remote lockdown 2417 | -8/Garrison | Lost 6 parts (2p3n1u) 2486 | -8/Garrison | Triggered checkpoint 2600 | -8/Garrison | Triggered checkpoint 2622 | -8/Garrison | Triggered checkpoint 2636 | -8/Garrison | Core integrity fell below 50% 2689 | -8/Garrison | Lost 12 parts (1p4n3u4w) 2692 | -8/Garrison | Build established: Scavenger-Mutant 2896 | -8/Garrison | Triggered checkpoint 2979 | -8/Garrison | Spotted B-75 Beast 2995 | -8/Garrison | Core integrity fell below 20% 3060 | -8/Garrison | Lost 11 parts (2p6n1u2w) 3086 | -8/Garrison | Installed Relay Interface Framework 3152 | -8/Garrison | Core destroyed Last Messages --------------- 02998_ Terrain Scanner destroyed. 03007_ Lgt. Treads destroyed. 03007_ Adv. Treads destroyed. 03010_ Lgt. Nuclear Core destroyed. 03016_ Knocked back. 03016_ Triggered Alarm Trap. 03016_ Lgt. Cannon destroyed. 03016_ An alarm sounds. 03017_ Acquired 14 matter. 03029_ Aluminum Leg destroyed. 03041_ System corrupted: Substantial component data lost. 03079_ Triggered Alarm Trap. 03079_ An alarm sounds. Initiating installation procedure... 03086_ Relay Interface Framework installed. 03099_ ALERT: Garrison interior compromised. 03103_ System corrupted: Energy discharge (-40). 03119_ System corrupted: Energy discharge (-35). 03152_ Slammed into Phase Generator. 03152_ Destabilizing: Core damaged (-22). Map ----- +----------------------------------------------------+ | | | | | ???????????????????????????????????????? | | ???????????????????????????????????????? | | ???????????????????????????????????????? | | ???????????????????????????????????????? | | ???????????????????????????????????????? | | ???????????????????????????????????????? | | ???????????????????????????????????????? | | ???????????????????????????????????????? | | ???????????????????????????????????????? | | ???????+???????????????????????????????? | | ???+++????????????#####????????????????? | | ??????????????????#"""#????????????????? | | ??????????????????#" "#????????????????? | | ??????????????????#" "#????????????????? | | ??????+???????????#" "#????????????????? | | ??????????????????# #????????????????? | | ??????????????????## #####?????????????? | | ???????????????????# #?#"#?????????????? | | ???????????????????# #?#"######????????? | | ??????????????????## ###""""""#????????? | | ?????###??+?????### " "#????????? | | +???+ ????????+ "#????????? | | ????# ????????### "#????????? | | ????# #??+???????# "@ "#????????? | | ????# #??????????# """ ""#????????? | | ????# #??????????# " ##????????? | | ????# #??????????# #?????????? | | ????# #??????????# #?????????? | | ???? +??????????# #?????????? | | ????# #??????????# #?????????? | | ????# #??????????###### #####?????????? | | ????# #???????????????# #?????????????? | | ????# #???????????##### #?????????????? | | ##### #############!!## #?????????????? | | " +?????????????? | | ####?????????????? | | ##### #########"""#!!#????????????????? | | ????# #?????#BB" ####????????????????? | | ????# #?????#BB" %#???????????????????? | | ????# #?????####%%#???????????????????? | | ????# #????????# #???????????????????? | | ????# #????????# #???????????????????? | | ????# #????????^ ^???????????????????? | | ##### #???????? ???????????????????? | | #??????? ??????????????????? | | +?????+? ??????????????????? | | ########???????!! !!??????????????????? | | ??????????????########?????????????????? | +----------------------------------------------------+ Best States ------------- Heat Dissipation 59 Energy Generation 14 Energy Capacity 265 Matter Stores 300 Matter Capacity 300 Sight Range 16 Terrain Scan Range 14 Terrain Scan Density 85 Armor Coverage 150 Utility Shielding 33 Evasion (%) 50 Recoil Reduction 4 Item Schematics ----------------- None Robot Schematics ------------------ None Fabricated ------------ Nothing Alien Tech Used ----------------- None Achievements -------------- None Challenges ------------ None Game ------ Seed PulseBattleRecalibrator Manual? 0 Play Time 00:25:17 Cumulative 146.6 hours Start 2023.11.10 @ 01:29:19 End 2023.11.10 @ 01:53:19 Sessions 1 Manual Loads 0 Difficulty Rogue Special Mode None Game No. 223 Rogue 223 Adventurer 0 Explorer 0 Win Type - Total 0 Types 0/0/0/0/0/0/0/0/0 Lore% 49 Gallery% 58 Achievement% 43 Wizard Run 0 Options --------- ASCII 0 Keyboard 0 Movement Mouse Keybinds 1 Fullscreen 2 Font 18/X11 Map View 76x50 Tactical HUD 1 Map Filters SATURATION(75) Filters LOW_CONTRAST(23,23,23) Steam 1 RUN: ebd88cb2-6083-4ef3-a258-a80843273445